fUST/lending_fUST_20241003
["ID","MTS","AMOUNT","RATE_DAILY","PERIOD"]
[339721703,1727894282070,-666.12,0.00013698,2]
[339721704,1727894282113,-1203.16,0.00013698,2]
[339721705,1727894282157,-781.41,0.00013698,2]
[339721706,1727894282200,-500.0,0.00013698,2]
[339721707,1727894282244,-760.38,0.00013698,2]
[339721708,1727894282285,-500.0,0.00013698,2]
[339721709,1727894282330,-500.0,0.00013698,2]
[339721710,1727894282372,-1223.23,0.00013698,2]
[339721711,1727894282415,-500.0,0.00013698,2]
[339721712,1727894282456,-500.0,0.00013698,2]
[339721713,1727894282495,-500.0,0.00013698,2]
[339721714,1727894282538,-500.0,0.00013698,2]
[339721715,1727894282581,-500.0,0.00013698,2]
[339721716,1727894282630,-591.11295276,0.00013698,2]
[339721717,1727894282670,-1105.85,0.00013698,2]
[339721718,1727894282710,-165.27488075,0.00013698,2]
[339721719,1727894282753,-500.0,0.00013698,2]
[339721720,1727894282791,-1477.39,0.00013698,2]
[339721721,1727894282828,-2219.43,0.00013698,2]
[339721722,1727894282871,-500.0,0.00013698,2]
[339721723,1727894282910,-1740.83,0.00013698,2]
[339721724,1727894282949,-500.0,0.00013698,2]
[339721725,1727894282986,-500.0,0.00013698,2]
[339721726,1727894283027,-500.0,0.00013698,2]
[339721727,1727894283069,-500.0,0.00013698,2]
[339721728,1727894283109,-500.0,0.00013698,2]
[339721729,1727894283151,-715.58,0.00013698,2]
[339721730,1727894283192,-1228.65,0.00013698,2]
[339721731,1727894283237,-500.0,0.00013698,2]
[339721732,1727894283276,-234.47240091,0.00013698,2]
[339721733,1727894283313,-613.78,0.00013698,2]
[339721734,1727894283354,-500.0,0.00013698,2]
[339721735,1727894283395,-500.0,0.00013698,2]
[339721736,1727894283599,-500.0,0.00013698,2]
[339721737,1727894283640,-518.46824491,0.00013698,2]
[339721738,1727894283684,-500.0,0.00013698,2]
[339721739,1727894283724,-500.0,0.00013698,2]
[339721740,1727894283764,-500.0,0.00013698,2]
[339721741,1727894283803,-503.18,0.00013698,2]
[339721742,1727894283843,-500.0,0.00013698,2]
[339721743,1727894283883,-500.0,0.00013698,2]
[339721744,1727894283926,-500.0,0.00013698,2]
[339721745,1727894283966,-969.04,0.00013698,2]
[339721746,1727894284007,-500.0,0.00013698,2]
[339721747,1727894284046,-500.0,0.00013698,2]
[339721748,1727894284084,-453.65459941,0.00013698,2]
[339721749,1727894284125,-500.0,0.00013698,2]
[339721750,1727894284171,-500.0,0.00013698,2]
[339721751,1727894284216,-500.0,0.00013698,2]
[339721752,1727894284255,-500.0,0.00013698,2]
[339721753,1727894284294,-500.0,0.00013698,2]
[339721754,1727894284331,-500.0,0.00013698,2]
[339721755,1727894284373,-500.0,0.00013698,2]
[339721756,1727894284410,-500.0,0.00013698,2]
[339721757,1727894284448,-500.0,0.00013698,2]
[339721758,1727894284484,-500.0,0.00013698,2]
[339721759,1727894284520,-500.0,0.00013698,2]
[339721760,1727894284556,-916.73,0.00013698,2]
[339721761,1727894284593,-506.22862476,0.00013698,2]
[339721762,1727894284630,-500.0,0.00013698,2]
[339721763,1727894284668,-500.0,0.00013698,2]
[339721764,1727894284705,-500.0,0.00013698,2]
[339721765,1727894284744,-500.0,0.00013698,2]
[339721766,1727894284782,-500.0,0.00013698,2]
[339721767,1727894284826,-500.0,0.00013698,2]
[339721768,1727894284864,-500.0,0.00013698,2]
[339721769,1727894284903,-500.0,0.00013698,2]
[339721770,1727894284942,-500.0,0.00013698,2]
[339721771,1727894284980,-500.0,0.00013698,2]
[339721772,1727894285019,-1015.48,0.00013698,2]
[339721773,1727894285061,-500.0,0.00013698,2]
[339721774,1727894285101,-500.0,0.00013698,2]
[339721775,1727894285142,-500.0,0.00013698,2]
[339721776,1727894285183,-500.0,0.00013698,2]
[339721777,1727894285222,-810.81,0.00013698,2]
[339721778,1727894285259,-500.0,0.00013698,2]
[339721779,1727894285299,-2947.85,0.00013698,2]
[339721780,1727894285338,-500.0,0.00013698,2]
[339721781,1727894285376,-500.0,0.00013698,2]
[339721782,1727894285411,-500.0,0.00013698,2]
[339721783,1727894285450,-500.0,0.00013698,2]
[339721784,1727894285490,-500.0,0.00013698,2]
[339721785,1727894285529,-500.0,0.00013698,2]
[339721786,1727894285571,-500.0,0.00013698,2]
[339721787,1727894285613,-500.0,0.00013698,2]
[339721788,1727894285652,-500.0,0.00013698,2]
[339721789,1727894285693,-500.0,0.00013698,2]
[339721790,1727894285734,-500.0,0.00013698,2]
[339721791,1727894285774,-500.0,0.00013698,2]
[339721792,1727894285815,-500.0,0.00013698,2]
[339721793,1727894285854,-500.0,0.00013698,2]
[339721794,1727894285891,-871.16,0.00013698,2]
[339721795,1727894285931,-500.0,0.00013698,2]
[339721796,1727894285968,-1340.89,0.00013698,2]
[339721797,1727894286006,-500.0,0.00013698,2]
[339721798,1727894286045,-500.0,0.00013698,2]
[339721799,1727894286083,-601.48,0.00013698,2]
[339721800,1727894286122,-500.0,0.00013698,2]
[339721801,1727894286164,-500.0,0.00013698,2]
[339721802,1727894286204,-500.0,0.00013698,2]
[339721803,1727894286244,-1918.95,0.00013698,2]
[339721804,1727894286282,-500.0,0.00013698,2]
[339721805,1727894286326,-500.0,0.00013698,2]
[339721806,1727894286364,-500.0,0.00013698,2]
[339721807,1727894286400,-500.0,0.00013698,2]
[339721808,1727894286436,-500.0,0.00013698,2]
[339721809,1727894286473,-500.0,0.00013698,2]
[339721810,1727894286510,-500.0,0.00013698,2]
[339721811,1727894286554,-500.0,0.00013698,2]
[339721812,1727894286591,-500.0,0.00013698,2]
[339721813,1727894286627,-500.0,0.00013698,2]
[339721814,1727894286669,-500.0,0.00013698,2]
[339721815,1727894286705,-500.0,0.00013698,2]
[339721816,1727894286749,-644.74,0.00013698,2]
[339721817,1727894286791,-500.0,0.00013698,2]
[339721818,1727894286835,-500.0,0.00013698,2]
[339721819,1727894286879,-196.50362316,0.00013698,2]
[339721820,1727894286925,-500.0,0.00013698,2]
[339721821,1727894286969,-500.0,0.00013698,2]
[339721822,1727894287010,-500.0,0.00013698,2]
[339721823,1727894287056,-500.0,0.00013698,2]
[339721824,1727894287095,-500.0,0.00013698,2]
[339721825,1727894287140,-500.0,0.00013698,2]
[339721826,1727894287181,-183.14346731,0.00013698,2]
[339721827,1727894287220,-760.23,0.00013698,2]
[339721828,1727894287267,-500.0,0.00013698,2]
[339721829,1727894287307,-500.0,0.00013698,2]
[339721830,1727894287350,-500.0,0.00013698,2]
[339721831,1727894287399,-500.0,0.00013698,2]
[339721832,1727894287442,-167.37795689,0.00013698,2]
[339721833,1727894287483,-500.0,0.00013698,2]
[339721834,1727894287522,-500.0,0.00013698,2]
[339721835,1727894287563,-500.0,0.00013698,2]
[339721836,1727894287609,-500.0,0.00013698,2]
[339721837,1727894287652,-500.0,0.00013698,2]
[339721838,1727894287693,-844.55,0.00013698,2]
[339721839,1727894287736,-500.0,0.00013698,2]
[339721840,1727894287776,-500.0,0.00013698,2]
[339721841,1727894287974,-439.10816075,0.00013698,2]
[339721842,1727894288020,-521.94,0.00013698,2]
[339721843,1727894288063,-20336.16,0.00013698,2]
[339721844,1727894288104,-500.0,0.00013698,2]
[339721845,1727894288153,-500.0,0.00013698,2]
[339721846,1727894288197,-1215.29,0.00013698,2]
[339721847,1727894288237,-500.0,0.00013698,2]
[339721848,1727894288278,-500.0,0.00013698,2]
[339721849,1727894288323,-500.0,0.00013698,2]
[339721850,1727894288362,-524.81,0.00013698,2]
[339721851,1727894288401,-500.0,0.00013698,2]
[339721852,1727894288442,-500.0,0.00013698,2]
[339721853,1727894288480,-500.0,0.00013698,2]
[339721854,1727894288524,-500.0,0.00013698,2]
[339721855,1727894288564,-500.0,0.00013698,2]
[339721856,1727894288603,-500.0,0.00013698,2]
[339721857,1727894288641,-500.0,0.00013698,2]
[339721858,1727894288678,-500.0,0.00013698,2]
[339721859,1727894288714,-500.0,0.00013698,2]
[339721860,1727894288752,-500.0,0.00013698,2]
[339721861,1727894288789,-500.0,0.00013698,2]
[339721862,1727894288844,-500.0,0.00013698,2]
[339721863,1727894288889,-707.29,0.00013698,2]
[339721864,1727894288929,-541.41,0.00013698,2]
[339721865,1727894288967,-500.0,0.00013698,2]
[339721866,1727894289009,-3177.61,0.00013698,2]
[339721867,1727894289049,-500.0,0.00013698,2]
[339721868,1727894289087,-500.0,0.00013698,2]
[339721869,1727894289131,-2865.18,0.00013698,2]
[339721870,1727894289177,-500.0,0.00013698,2]
[339721871,1727894289219,-500.0,0.00013698,2]
[339721872,1727894289271,-530.77,0.00013698,2]
[339721873,1727894289312,-626.02678741,0.00013698,2]
[339721874,1727894289361,-500.0,0.00013698,2]
[339721875,1727894289401,-500.0,0.00013698,2]
[339721876,1727894290453,500.0,0.00013698,2]
[339721877,1727894290777,500.0,0.00013698,2]
[339721878,1727894290845,500.0,0.00013698,2]
[339721879,1727894291222,500.0,0.00013698,2]
[339721880,1727894291535,500.0,0.00013698,2]
[339721883,1727894739100,-755.4,0.00010959,2]
[339721884,1727894739125,-509.5689537,0.00011093,2]
[339721885,1727894739150,-5352.02562369,0.0001138,2]
[339721886,1727894837122,-2314.79999994,0.00010709,2]
[339721887,1727894842095,163.218787,0.0001016,2]
[339721888,1727894948211,-3000.0,0.00010691,2]
[339721889,1727894948234,-1911.27628256,0.00010709,2]
[339721890,1727894948256,-893.3,0.00010959,2]
[339721891,1727894948276,-163.218787,0.00011229,2]
[339721892,1727894948299,-250.0,0.00011355,2]
[339721893,1727894948323,-842.71775091,0.0001138,2]
[339721894,1727894948349,-250.0,0.00011386,2]
[339721895,1727894948371,-195.43877393,0.00011417,2]
[339721896,1727894949303,-54.56122607,0.00011417,2]
[339721897,1727894949328,-247.28930662,0.00011448,2]
[339721898,1727894952173,-2.71069338,0.00011448,2]
[339721899,1727894952196,-250.0,0.00011479,2]
[339721900,1727894952222,-250.0,0.00011511,2]
[339721901,1727894952245,-250.0,0.00011542,2]
[339721902,1727894952268,-250.0,0.00011573,2]
[339721903,1727894952292,-250.0,0.00011604,2]
[339721904,1727894952315,-300.0,0.00011634,2]
[339721905,1727894952346,-300.0,0.00011634,2]
[339721906,1727894952370,-250.0,0.00011635,2]
[339721907,1727894952395,-250.0,0.00011666,2]
[339721908,1727894952418,-250.0,0.00011697,2]
[339721909,1727894952443,-250.0,0.00011729,2]
[339721910,1727894952468,-250.0,0.0001176,2]
[339721911,1727894952492,-250.0,0.00011791,2]
[339721912,1727894952517,-250.0,0.00011822,2]
[339721913,1727894952541,-250.0,0.00011853,2]
[339721914,1727894952567,-250.0,0.00011884,2]
[339721915,1727894952590,-250.0,0.00011915,2]
[339721916,1727894952612,-250.0,0.00011947,2]
[339721917,1727894952634,-765.74680142,0.00012216,2]
[339721918,1727894952656,-24900.0,0.00012216,2]
[339721919,1727894952836,500.0,0.00011506,2]
[339721920,1727894954168,-8712.4789824,0.00012435,2]
[339721921,1727894954191,-284.727177,0.00012436,2]
[339721922,1727894954212,-792.1075755,0.00012623,2]
[339721923,1727894954233,-420.0,0.00012776,2]
[339721924,1727894954256,-420.0,0.00012798,2]
[339721928,1727895003156,213.44952067,0.00011,2]
[339721929,1727895003185,8066.0,0.00012575,2]
[339721931,1727895025963,178.465445,0.00012591,2]
[339721932,1727895026411,178.465445,0.00012612,2]
[339721933,1727895026630,178.465445,0.00012633,2]
[339721934,1727895026868,178.465445,0.00012654,2]
[339721959,1727895032445,-312.885,0.00012876,2]
[339721960,1727895032458,-187.115,0.00012876,2]
[339721961,1727895032468,-804.0,0.000133,2]
[339721962,1727895032478,-7194.09562255,0.00013517,2]
[339721963,1727895032488,-5210.54470769,0.00013573,2]
[339721964,1727895032498,-300.0,0.00013587,2]
[339721965,1727895032508,-300.0,0.00013587,2]
[339721966,1727895032518,-271.87788699,0.00013588,2]
[339721967,1727895032527,-446.10143008,0.00013588,2]
[339721968,1727895032537,-446.10143005,0.00013589,2]
[339721969,1727895032546,-446.10143005,0.00013589,2]
[339721970,1727895032556,-446.10143005,0.0001359,2]
[339721971,1727895032565,-271.87788699,0.00013591,2]
[339721972,1727895032575,-446.10143005,0.00013591,2]
[339721973,1727895032584,-446.10143005,0.00013592,2]
[339721974,1727895032593,-446.10143005,0.00013592,2]
[339721975,1727895032604,-271.87788699,0.00013593,2]
[339721976,1727895032614,-446.10143005,0.00013593,2]
[339721977,1727895032627,-446.10143005,0.00013594,2]
[339721978,1727895032638,-446.10143005,0.00013594,2]
[339721979,1727895032650,-446.10143005,0.00013595,2]
[339721980,1727895032659,-271.87788699,0.00013596,2]
[339721981,1727895032669,-271.87788699,0.00013598,2]
[339721982,1727895032679,-786.59536117,0.00013598,2]
[339721983,1727895032688,-1000.00000001,0.000136,2]
[339721984,1727895032697,-10377.34942237,0.00013658,2]
[339721985,1727895032708,-1142.15849935,0.00013658,2]
[339721986,1727895032718,-500.0,0.00013673,2]
[339721987,1727895032727,-500.0,0.00013673,2]
[339721988,1727895032736,-500.0,0.00013673,2]
[339721989,1727895032746,-500.0,0.00013673,2]
[339721990,1727895032755,-500.0,0.00013673,2]
[339721991,1727895032764,-500.04668334,0.00013673,2]
[339721992,1727895032774,-500.0,0.00013673,2]
[339721993,1727895032788,-500.0,0.00013673,2]
[339721994,1727895032798,-501.57733193,0.00013673,2]
[339721995,1727895032808,-171.70271192,0.00013673,2]
[339721996,1727895032818,-500.0,0.00013673,2]
[339721997,1727895032827,-287.54060392,0.00013673,2]
[339721998,1727895032837,-500.0,0.00013673,2]
[339721999,1727895032846,-500.0,0.00013673,2]
[339722000,1727895032855,-500.0,0.00013673,2]
[339722001,1727895032865,-1000.0,0.00013683,2]
[339722002,1727895032877,-21818.08949827,0.00013688,2]
[339722003,1727895033414,500.0,0.00012,2]
[339722004,1727895033934,500.0,0.00012,2]
[339722005,1727895034334,500.0,0.00012,2]
[339722006,1727895034755,487.15731388,0.00012,2]
[339722062,1727895038510,-446.10143005,0.00013596,2]
[339722063,1727895038520,-500.0,0.00013673,2]
[339722064,1727895038530,-53.89856995,0.00013688,2]
[339722075,1727895042318,-33631.96368844,0.00013688,2]
[339722076,1727895042786,-2088.59999982,0.00013688,2]
[339722077,1727895042806,-259338.32941452,0.00013688,2]
[339722078,1727895042822,-261884.781429,0.00013688,2]
[339722079,1727895042840,-14234.96508761,0.00013698,2]
[339722080,1727895042865,-3173.4,0.00013698,2]
[339722103,1727895101531,500.0,0.00011506,2]
[339722104,1727895141791,241.61,0.00010959,2]
[339722114,1727895766725,-161.71,0.00010959,2]
[339722115,1727895766762,-676.61517139,0.00011113,4]
[339722116,1727895766799,-1583.6453734,0.00011213,2]
[339722117,1727895766836,-2877.4329184,0.00011596,2]
[339722118,1727895766871,-189.908278,0.00011626,2]
[339722119,1727895766907,-250.0,0.00011972,2]
[339722120,1727895766942,-250.0,0.00012005,2]
[339722121,1727895766977,-250.0,0.00012038,2]
[339722122,1727895767012,-250.0,0.00012071,2]
[339722123,1727895767047,-250.0,0.00012104,2]
[339722124,1727895767082,-250.0,0.00012136,2]
[339722125,1727895767118,-250.0,0.00012169,2]
[339722126,1727895767153,-250.0,0.00012202,2]
[339722127,1727895767189,-250.0,0.00012235,2]
[339722128,1727895767226,-250.0,0.00012268,2]
[339722129,1727895767264,-250.0,0.00012301,2]
[339722130,1727895767301,-250.0,0.00012333,2]
[339722131,1727895767336,-300.0,0.00012364,2]
[339722132,1727895767373,-300.0,0.00012364,2]
[339722133,1727895767408,-250.0,0.00012366,2]
[339722134,1727895767442,-250.0,0.00012399,2]
[339722135,1727895767479,-250.0,0.00012432,2]
[339722136,1727895767516,-160.68825881,0.00012465,2]
[339722138,1727895995106,-300.0,0.00011754,2]
[339722139,1727895995130,-2462.90227132,0.00011755,2]
[339722140,1727896047238,-189.908278,0.00011497,2]
[339722141,1727896047263,-300.0,0.00011754,2]
[339722142,1727896047285,-300.0,0.00011754,2]
[339722143,1727896047307,-3473.57172204,0.00011755,2]
[339722144,1727896048095,-8653.32266761,0.00011755,2]
[339722145,1727896051094,-2116.899,0.00011755,2]
[339722146,1727896124219,2847.5195402,0.0001,5]
[339722147,1727896136783,1895.6321561,0.0001,5]
[339722148,1727896149597,-8193.30433903,0.00011755,2]
[339722149,1727896149632,-151.38629372,0.00012184,2]
[339722150,1727896149665,-218.25976,0.00012283,2]
[339722151,1727896149698,-218.25976,0.00012317,2]
[339722152,1727896149737,-151.3862937,0.00012319,2]
[339722153,1727896149771,-218.25976,0.00012351,2]
[339722154,1727896149805,-218.25976,0.00012385,2]
[339722155,1727896149842,-218.25976,0.00012418,2]
[339722156,1727896149873,-300.0,0.00012451,2]
[339722157,1727896149907,-218.25976,0.00012452,2]
[339722158,1727896149938,-151.3862937,0.00012453,2]
[339722159,1727896149970,-218.25976,0.00012486,2]
[339722160,1727896150001,-218.25976,0.00012519,2]
[339722161,1727896150034,-218.25976,0.00012553,2]
[339722162,1727896150071,-218.25976,0.00012587,2]
[339722163,1727896150101,-1136.84025972,0.00012587,2]
[339722164,1727896150136,-218.25976,0.0001262,2]
[339722165,1727896150168,-218.25976,0.00012654,2]
[339722166,1727896150201,-218.25976,0.00012688,2]
[339722167,1727896150233,-218.25976,0.00012722,2]
[339722168,1727896150267,-153.0,0.00012741,2]
[339722169,1727896150300,-218.25976,0.00012755,2]
[339722170,1727896150334,-218.25976,0.00012789,2]
[339722171,1727896154827,153.0,0.00012741,2]
[339722172,1727896195299,3000.0,0.00012409,2]
[339722217,1727896232512,-218.25976,0.00012823,2]
[339722219,1727896232522,-145.94624,0.00012856,2]
[339722221,1727896232535,-72.31352,0.00012856,2]
[339722223,1727896232544,-500.0,0.00012876,2]
[339722226,1727896232555,-218.25976,0.0001289,2]
[339722227,1727896232564,-218.25976,0.00012924,2]
[339722229,1727896232574,-16.30502818,0.000133,2]
[339722242,1727896232780,-483.69497182,0.000133,2]
[339722243,1727896232790,-412.701024,0.000133,2]
[339722244,1727896232799,-65.08430058,0.000134,2]
[339722287,1727896238548,-347.61672342,0.000134,2]
[339722289,1727896238558,-412.701024,0.000134,2]
[339722291,1727896238568,-300.0,0.00013459,2]
[339722293,1727896238578,-300.0,0.00013459,2]
[339722295,1727896238588,-193.26981215,0.00013496,2]
[339722297,1727896238598,-269.9956122,0.000135,2]
[339722299,1727896238607,-290.8570059,0.000135,2]
[339722301,1727896238617,-153.0,0.000135,2]
[339722303,1727896238627,-1432.4604569,0.00013573,2]
[339722441,1727896240588,-3863.08879526,0.00013573,2]
[339722443,1727896240598,-377.60817636,0.00013588,2]
[339722445,1727896240608,-153.0,0.000136,2]
[339722448,1727896240618,-7194.09562255,0.00013604,2]
[339722450,1727896240629,-500.39193273,0.00013673,2]
[339722452,1727896240639,-501.82860116,0.00013673,2]
[339722454,1727896240650,-500.0,0.00013673,2]
[339722456,1727896240659,-500.0,0.00013673,2]
[339722458,1727896240669,-500.0,0.00013673,2]
[339722460,1727896240685,-500.0,0.00013673,2]
[339722462,1727896240695,-549.80656059,0.00013673,2]
[339722464,1727896240705,-500.0,0.00013673,2]
[339722466,1727896240714,-500.0,0.00013673,2]
[339722468,1727896240724,-500.51863415,0.00013673,2]
[339722470,1727896240735,-500.0,0.00013673,2]
[339722472,1727896240745,-500.0,0.00013673,2]
[339722474,1727896240755,-500.0,0.00013673,2]
[339722476,1727896240765,-502.66891151,0.00013673,2]
[339722478,1727896240775,-500.0,0.00013673,2]
[339722480,1727896240786,-500.0,0.00013673,2]
[339722482,1727896240795,-500.0,0.00013673,2]
[339722484,1727896240805,-500.0,0.00013673,2]
[339722486,1727896240816,-502.87996593,0.00013673,2]
[339722488,1727896240825,-500.0,0.00013673,2]
[339722490,1727896240835,-761.43899957,0.00013673,2]
[339722492,1727896240846,-43720.9838818,0.00013678,2]
[339722494,1727896240856,-218604.919409,0.00013678,2]
[339722496,1727896240866,-102328.553215,0.00013688,2]
[339722498,1727896240875,-43720.9838818,0.00013688,2]
[339722500,1727896240885,-106990.91270442,0.00013688,2]
[339722502,1727896240897,-3364.79999996,0.00013688,2]
[339722572,1727896243882,-306.98914126,0.00013673,2]
[339722573,1727896243894,-193.01085874,0.00013673,2]
[339722574,1727896243906,-94301.39372562,0.00013688,2]
[339722575,1727896243916,-17592.99800605,0.00013698,2]
[339722576,1727896243928,-95322.44599474,0.00013698,2]
[339722577,1727896243938,-500.0,0.00013698,2]
[339722578,1727896243948,-502.6554538,0.00013698,2]
[339722579,1727896243958,-500.0,0.00013698,2]
[339722580,1727896243968,-500.0,0.00013698,2]
[339722581,1727896243978,-450.2850937,0.00013698,2]
[339722582,1727896243988,-500.0,0.00013698,2]
[339722583,1727896243999,-500.0,0.00013698,2]
[339722584,1727896244009,-378.05453151,0.00013698,2]
[339722585,1727896244021,-500.0,0.00013698,2]
[339722586,1727896244031,-196.49326061,0.00013698,2]
[339722587,1727896244043,-500.0,0.00013698,2]
[339722588,1727896244053,-521.93717053,0.00013698,2]
[339722589,1727896244062,-500.0,0.00013698,2]
[339722590,1727896244073,-500.0,0.00013698,2]
[339722591,1727896244083,-500.0,0.00013698,2]
[339722592,1727896244094,-500.0,0.00013698,2]
[339722593,1727896244104,-500.0,0.00013698,2]
[339722594,1727896244114,-500.0,0.00013698,2]
[339722595,1727896244123,-600.40270564,0.00013698,2]
[339722596,1727896244133,-500.0,0.00013698,2]
[339722597,1727896244144,-500.0,0.00013698,2]
[339722598,1727896244154,-477.81797734,0.00013698,2]
[339722599,1727896244164,-500.0,0.00013698,2]
[339722600,1727896244173,-500.0,0.00013698,2]
[339722601,1727896244189,-500.0,0.00013698,2]
[339722602,1727896244200,-500.0,0.00013698,2]
[339722603,1727896244210,-500.0,0.00013698,2]
[339722604,1727896244219,-184.47258414,0.00013698,2]
[339722605,1727896244230,-291.27702083,0.00013698,2]
[339722606,1727896244239,-500.0,0.00013698,2]
[339722607,1727896244249,-596.14642584,0.00013698,2]
[339722608,1727896244258,-500.0,0.00013698,2]
[339722609,1727896244268,-500.0,0.00013698,2]
[339722610,1727896244277,-500.0,0.00013698,2]
[339722611,1727896244286,-500.0,0.00013698,2]
[339722612,1727896244296,-500.0,0.00013698,2]
[339722613,1727896244306,-500.0,0.00013698,2]
[339722614,1727896244315,-500.0,0.00013698,2]
[339722615,1727896244325,-500.0,0.00013698,2]
[339722616,1727896244334,-500.0,0.00013698,2]
[339722617,1727896244343,-500.0,0.00013698,2]
[339722618,1727896244353,-500.0,0.00013698,2]
[339722619,1727896244363,-500.0,0.00013698,2]
[339722620,1727896244373,-500.0,0.00013698,2]
[339722621,1727896244382,-500.0,0.00013698,2]
[339722622,1727896244392,-424.77160862,0.00013698,2]
[339722623,1727896244402,-500.0,0.00013698,2]
[339722624,1727896244411,-500.0,0.00013698,2]
[339722625,1727896244421,-500.0,0.00013698,2]
[339722626,1727896244435,-500.0,0.00013698,2]
[339722627,1727896244445,-179.46583739,0.00013698,2]
[339722628,1727896244454,-450.0,0.00013698,2]
[339722629,1727896244463,-394.52831322,0.00013698,2]
[339722630,1727896244473,-500.0,0.00013698,2]
[339722631,1727896244483,-500.0,0.00013698,2]
[339722632,1727896244492,-500.0,0.00013698,2]
[339722633,1727896244502,-453.70857288,0.00013698,2]
[339722634,1727896244512,-600.55375693,0.00013698,2]
[339722635,1727896244522,-500.0,0.00013698,2]
[339722636,1727896244532,-500.0,0.00013698,2]
[339722637,1727896244542,-500.0,0.00013698,2]
[339722638,1727896244552,-500.0,0.00013698,2]
[339722639,1727896244562,-210.0,0.00013698,2]
[339722640,1727896244572,-500.0,0.00013698,2]
[339722641,1727896244582,-500.0,0.00013698,2]
[339722642,1727896244592,-500.0,0.00013698,2]
[339722643,1727896244601,-500.0,0.00013698,2]
[339722644,1727896244611,-500.0,0.00013698,2]
[339722645,1727896244620,-500.0,0.00013698,2]
[339722646,1727896244630,-500.0,0.00013698,2]
[339722647,1727896244640,-500.0,0.00013698,2]
[339722648,1727896244649,-500.0,0.00013698,2]
[339722649,1727896244659,-500.0,0.00013698,2]
[339722650,1727896244669,-639.83299682,0.00013698,2]
[339722651,1727896244681,-500.0,0.00013698,2]
[339722652,1727896244692,-500.0,0.00013698,2]
[339722653,1727896244702,-500.0,0.00013698,2]
[339722654,1727896244711,-211.05973765,0.00013698,2]
[339722655,1727896244720,-500.0,0.00013698,2]
[339722656,1727896244731,-500.0,0.00013698,2]
[339722657,1727896244741,-500.0,0.00013698,2]
[339722658,1727896244751,-357.14624464,0.00013698,2]
[339722659,1727896244761,-500.0,0.00013698,2]
[339722660,1727896244771,-500.0,0.00013698,2]
[339722661,1727896244781,-500.0,0.00013698,2]
[339722662,1727896244791,-600.0,0.00013698,2]
[339722663,1727896244801,-500.0,0.00013698,2]
[339722664,1727896244952,-500.0,0.00013698,2]
[339722665,1727896244962,-500.0,0.00013698,2]
[339722666,1727896244972,-500.0,0.00013698,2]
[339722667,1727896244981,-248.14000316,0.00013698,2]
[339722668,1727896244991,-500.0,0.00013698,2]
[339722669,1727896245000,-566.14,0.00013698,2]
[339722670,1727896245010,-500.0,0.00013698,2]
[339722671,1727896245019,-500.0,0.00013698,2]
[339722672,1727896245029,-500.0,0.00013698,2]
[339722673,1727896245038,-500.0,0.00013698,2]
[339722674,1727896245047,-500.0,0.00013698,2]
[339722675,1727896245057,-500.0,0.00013698,2]
[339722676,1727896245066,-500.0,0.00013698,2]
[339722677,1727896245075,-500.0,0.00013698,2]
[339722678,1727896245084,-500.0,0.00013698,2]